[Event "13 Open de Quenza"]
[Site "Quenza, France"]
[Date "2024.07.07"]
[Round "8.1"]
[White "Maurizzi, Marc Andria"]
[Black "Anand, Viswanathan"]
[Result "0-1"]
[TimeControl "5min+3s/move"]
[WhiteElo "2620"]
[BlackElo "2751"]

1. e4 {[%clk 00:04:55]} {[%emt 00:00:11]} e5 {[%clk 00:05:03]} {[%emt
00:00:01]} 2. Nf3 {[%clk 00:04:55]} Nc6 {[%clk 00:05:03]} 3. Bb5 {[%clk
00:04:55]} a6 {[%clk 00:05:03]} {[%emt 00:00:01]} 4. Ba4 {[%clk 00:04:55]} Nf6
{[%clk 00:05:03]} {[%emt 00:00:01]} 5. Nc3 {[%clk 00:04:55]} Bc5 {[%clk
00:05:02]} {[%emt 00:00:04]} 6. Bxc6 {[%clk 00:04:48]} {[%emt 00:00:10]} dxc6
{[%clk 00:05:02]} {[%emt 00:00:01]} 7. d3 {[%clk 00:04:48]} {[%emt 00:00:01]}
Qe7 {[%clk 00:04:59]} {[%emt 00:00:06]} 8. Be3 {[%clk 00:04:47]} {[%emt
00:00:03]} Bxe3 9. fxe3 {[%clk 00:04:47]} Bd7 {[%clk 00:04:51]} {[%emt
00:00:03]} 10. O-O {[%clk 00:04:47]} {[%emt 00:00:04]} O-O {[%clk 00:04:51]}
{[%emt 00:00:03]} 11. Qe1 {[%clk 00:04:46]} {[%emt 00:00:04]} Rae8 {[%clk
00:04:44]} {[%emt 00:00:09]} 12. a4 {[%clk 00:04:44]} {[%emt 00:00:05]} Ng4
{[%clk 00:04:40]} {[%emt 00:00:07]} 13. h3 {[%clk 00:04:40]} {[%emt 00:00:07]}
Nh6 {[%clk 00:04:40]} 14. a5 {[%clk 00:04:21]} {[%emt 00:00:21]} f6 {[%clk
00:04:28]} {[%emt 00:00:15]} 15. Ne2 {[%clk 00:03:42]} {[%emt 00:00:42]} f5
{[%clk 00:04:09]} {[%emt 00:00:22]} 16. Nc3 {[%clk 00:03:02]} {[%emt 00:00:42]}
f4 {[%clk 00:04:02]} {[%emt 00:00:10]} 17. exf4 {[%clk 00:02:57]} {[%emt
00:00:08]} exf4 {[%clk 00:04:01]} {[%emt 00:00:04]} 18. d4 {[%clk 00:02:48]}
{[%emt 00:00:13]} g5 {[%clk 00:04:00]} {[%emt 00:00:04]} 19. e5 {[%clk
00:02:32]} {[%emt 00:00:19]} g4 {[%clk 00:03:58]} {[%emt 00:00:05]} 20. hxg4
{[%clk 00:02:30]} {[%emt 00:00:05]} Nxg4 {[%clk 00:03:58]} {[%emt 00:00:01]} 21.
Qh4 {[%clk 00:02:20]} {[%emt 00:00:13]} Qxh4 {[%clk 00:03:47]} {[%emt
00:00:13]} 22. Nxh4 {[%clk 00:02:20]} {[%emt 00:00:01]} c5 {[%clk 00:03:47]}
{[%emt 00:00:02]} 23. dxc5 {[%clk 00:01:44]} {[%emt 00:00:39]} Rxe5 {[%clk
00:03:47]} 24. Nf3 {[%clk 00:01:41]} {[%emt 00:00:07]} Rxc5 {[%clk 00:03:45]}
{[%emt 00:00:05]} 25. Rae1 {[%clk 00:01:05]} {[%emt 00:00:38]} Ne3 {[%clk
00:03:33]} {[%emt 00:00:16]} 26. Rf2 {[%clk 00:01:05]} Rxa5 {[%clk 00:03:33]}
{[%emt 00:00:02]} 27. Rd2 {[%clk 00:01:05]} Bg4 {[%clk 00:03:26]} {[%emt
00:00:10]} 28. Nh2 {[%clk 00:01:04]} {[%emt 00:00:04]} Bf5 {[%clk 00:03:21]}
{[%emt 00:00:07]} 29. Nf1 {[%clk 00:00:55]} {[%emt 00:00:12]} Nxf1 {[%clk
00:02:52]} {[%emt 00:00:32]} 30. Kxf1 {[%clk 00:00:55]} {[%emt 00:00:03]} Rc5
{[%clk 00:02:51]} {[%emt 00:00:04]} 31. Kf2 {[%clk 00:00:49]} {[%emt 00:00:09]}
Rf7 {[%clk 00:02:51]} {[%emt 00:00:04]} 32. Ree2 {[%clk 00:00:49]} {[%emt
00:00:03]} Kg7 {[%clk 00:02:45]} {[%emt 00:00:09]} 33. Kf3 {[%clk 00:00:43]}
{[%emt 00:00:10]} Bg6 {[%emt 00:00:03]} 34. Kf2 a5 {[%clk 00:02:36]} {[%emt
00:00:12]} 35. Na4 {[%clk 00:00:28]} {[%emt 00:00:18]} Rc6 {[%clk 00:02:30]}
{[%emt 00:00:08]} 36. Nc3 {[%clk 00:00:28]} {[%emt 00:00:03]} Rc5 {[%clk
00:02:29]} {[%emt 00:00:04]} 37. Na4 {[%clk 00:00:28]} Rcf5 {[%clk 00:02:28]}
{[%emt 00:00:04]} 38. Nc3 {[%clk 00:00:09]} {[%emt 00:00:22]} f3 39. gxf3 Rxf3+
{[%clk 00:02:28]} {[%emt 00:00:02]} 40. Kg2 {[%clk 00:00:09]} R3f5 {[%clk
00:02:28]} {[%emt 00:00:03]} 41. Re3 {[%clk 00:00:09]} Rg5+ {[%clk 00:02:25]}
{[%emt 00:00:06]} 42. Rg3 {[%clk 00:00:09]} {[%emt 00:00:01]} Rxg3+ {[%clk
00:02:25]} 43. Kxg3 {[%clk 00:00:09]} b6 {[%clk 00:02:25]} {[%emt 00:00:01]} 44.
Nb5 {[%clk 00:00:08]} {[%emt 00:00:04]} Re7 {[%clk 00:02:19]} {[%emt 00:00:09]}
45. c3 {[%clk 00:00:08]} {[%emt 00:00:02]} Be8 {[%emt 00:00:03]} 46. Nd4 Bd7 47.
Nf3 Kf6 {[%clk 00:02:17]} {[%emt 00:00:04]} 48. Nd4 {[%clk 00:00:08]} c5 {[%emt
00:00:03]} 49. Rf2+ Ke5 {[%clk 00:02:16]} {[%emt 00:00:04]} 50. Nf3+ {[%clk
00:00:08]} Kd5 {[%clk 00:02:16]} {[%emt 00:00:01]} 51. Rd2+ {[%clk 00:00:08]}
{[%emt 00:00:02]} Kc6 {[%clk 00:02:12]} {[%emt 00:00:07]} 52. Kf4 {[%clk
00:00:08]} Kb5 {[%clk 00:02:09]} {[%emt 00:00:07]} 53. c4+ {[%clk 00:00:08]}
{[%emt 00:00:02]} Kc6 {[%clk 00:02:04]} {[%emt 00:00:07]} 54. Ne5+ {[%clk
00:00:08]} {[%emt 00:00:01]} Kc7 {[%clk 00:02:04]} 55. Rh2 {[%clk 00:00:08]}
{[%emt 00:00:03]} Be6 {[%clk 00:02:04]} {[%emt 00:00:02]} 56. b3 {[%clk
00:00:08]} {[%emt 00:00:01]} Bd7 {[%clk 00:02:03]} {[%emt 00:00:05]} 57. Rh6
{[%clk 00:00:06]} {[%emt 00:00:04]} Be8 {[%clk 00:02:03]} {[%emt 00:00:02]} 58.
Rh2 {[%clk 00:00:06]} {[%emt 00:00:02]} Bg6 {[%clk 00:02:03]} {[%emt 00:00:02]}
59. Rd2 {[%clk 00:00:06]} {[%emt 00:00:02]} Re6 {[%clk 00:02:01]} {[%emt
00:00:05]} 60. Ng4 {[%clk 00:00:06]} {[%emt 00:00:01]} Rd6 {[%clk 00:02:01]}
{[%emt 00:00:02]} 61. Re2 {[%clk 00:00:06]} {[%emt 00:00:01]} Rd3 {[%clk
00:01:58]} {[%emt 00:00:06]} 62. Rb2 {[%clk 00:00:05]} {[%emt 00:00:04]} Rd4+
{[%clk 00:01:58]} {[%emt 00:00:03]} 63. Kg5 {[%clk 00:00:05]} a4 {[%clk
00:01:58]} {[%emt 00:00:03]} 64. bxa4 {[%emt 00:00:03]} Rxc4 {[%clk 00:01:58]}
65. Nf6 {[%clk 00:00:05]} {[%emt 00:00:01]} Kc6 {[%clk 00:01:55]} {[%emt
00:00:05]} 66. Ng8 {[%clk 00:00:05]} {[%emt 00:00:03]} Rxa4 {[%clk 00:01:50]}
{[%emt 00:00:08]} 67. Ne7+ {[%clk 00:00:05]} Kb7 {[%clk 00:01:50]} {[%emt
00:00:01]} 68. Nd5 {[%clk 00:00:05]} {[%emt 00:00:01]} Ra6 {[%clk 00:01:50]}
{[%emt 00:00:01]} 69. Kf6 {[%clk 00:00:05]} {[%emt 00:00:02]} b5+ {[%clk
00:01:50]} {[%emt 00:00:01]} 70. Ke5 {[%clk 00:00:05]} b4 {[%clk 00:01:50]} 71.
Rd2 {[%clk 00:00:04]} {[%emt 00:00:04]} Kc6 {[%clk 00:01:48]} {[%emt 00:00:05]}
72. Rf2 {[%clk 00:00:04]} Ra1 {[%clk 00:01:46]} {[%emt 00:00:05]} 73. Rf6+
{[%clk 00:00:04]} Kb5 {[%clk 00:01:46]} {[%emt 00:00:01]} 74. Rb6+ {[%clk
00:00:04]} Kc4 {[%clk 00:01:46]} {[%emt 00:00:02]} 75. Nf6 {[%clk 00:00:04]}
{[%emt 00:00:03]} Rd1 {[%clk 00:01:46]} {[%emt 00:00:02]} 76. Ng4 {[%clk
00:00:04]} {[%emt 00:00:02]} Rd5+ {[%emt 00:00:01]} 77. Kf4 Rd4 78. Kg3 Rxg4+
{[%clk 00:01:46]} 0-1

[Event "13 Open de Quenza"]
[Site "Quenza, France"]
[Date "2024.07.07"]
[Round "8.2"]
[White "Lagarde, Maxime"]
[Black "Relange, Eloi"]
[Result "1-0"]
[TimeControl "5min+3s/move"]
[WhiteElo "2608"]
[BlackElo "2440"]

1. e4 {[%clk 00:05:03]} d6 {[%clk 00:05:03]} {[%emt 00:00:02]} 2. d4 {[%clk
00:05:03]} Nf6 {[%clk 00:05:03]} {[%emt 00:00:01]} 3. Nc3 {[%clk 00:05:03]}
{[%emt 00:00:01]} e5 {[%clk 00:05:03]} {[%emt 00:00:01]} 4. Nf3 {[%clk
00:05:01]} {[%emt 00:00:06]} Nbd7 {[%clk 00:05:03]} {[%emt 00:00:02]} 5. h3
{[%clk 00:05:01]} c6 {[%clk 00:05:00]} {[%emt 00:00:06]} 6. g4 {[%clk
00:05:01]} {[%emt 00:00:02]} b5 {[%clk 00:04:46]} {[%emt 00:00:17]} 7. g5
{[%clk 00:04:53]} {[%emt 00:00:11]} Nh5 {[%clk 00:04:32]} {[%emt 00:00:17]} 8.
Be3 {[%clk 00:04:44]} {[%emt 00:00:12]} b4 {[%clk 00:04:18]} {[%emt 00:00:18]}
9. Ne2 {[%clk 00:04:40]} {[%emt 00:00:06]} Be7 {[%clk 00:04:13]} {[%emt
00:00:08]} 10. Qd2 {[%clk 00:04:36]} {[%emt 00:00:08]} O-O {[%clk 00:04:07]}
{[%emt 00:00:08]} 11. O-O-O {[%clk 00:04:03]} {[%emt 00:00:36]} a5 {[%clk
00:04:04]} {[%emt 00:00:06]} 12. Kb1 {[%clk 00:03:50]} {[%emt 00:00:16]} a4
{[%clk 00:03:54]} {[%emt 00:00:13]} 13. Nc1 {[%clk 00:03:50]} {[%emt 00:00:02]}
Qa5 {[%clk 00:03:10]} {[%emt 00:00:46]} 14. Be2 {[%clk 00:03:50]} {[%emt
00:00:01]} g6 {[%clk 00:02:57]} {[%emt 00:00:16]} 15. Qe1 {[%clk 00:03:29]}
{[%emt 00:00:24]} Re8 {[%clk 00:02:40]} {[%emt 00:00:20]} 16. dxe5 {[%clk
00:03:29]} {[%emt 00:00:02]} dxe5 {[%clk 00:02:27]} {[%emt 00:00:16]} 17. Nd2
{[%clk 00:03:29]} {[%emt 00:00:01]} Nf4 {[%clk 00:02:25]} {[%emt 00:00:06]} 18.
Nc4 {[%clk 00:03:28]} {[%emt 00:00:04]} Qc7 {[%clk 00:02:25]} {[%emt 00:00:01]}
19. Bg4 {[%clk 00:03:21]} {[%emt 00:00:10]} a3 {[%clk 00:02:03]} {[%emt
00:00:26]} 20. b3 {[%clk 00:03:14]} {[%emt 00:00:09]} Ng2 {[%clk 00:01:49]}
{[%emt 00:00:17]} 21. Qd2 {[%clk 00:03:05]} {[%emt 00:00:12]} Nxe3 {[%clk
00:01:49]} {[%emt 00:00:02]} 22. Qxe3 {[%clk 00:02:55]} {[%emt 00:00:13]} Bc5
{[%clk 00:01:35]} {[%emt 00:00:18]} 23. Rxd7 {[%clk 00:02:44]} {[%emt
00:00:14]} Bxd7 {[%clk 00:01:20]} {[%emt 00:00:18]} 24. Qxc5 {[%clk 00:02:44]}
{[%emt 00:00:01]} Bxg4 {[%clk 00:00:59]} {[%emt 00:00:25]} 25. hxg4 {[%clk
00:02:44]} {[%emt 00:00:01]} Qd7 {[%clk 00:00:59]} {[%emt 00:00:02]} 26. f3
{[%clk 00:02:38]} {[%emt 00:00:09]} Qd8 {[%clk 00:00:53]} {[%emt 00:00:09]} 27.
Qe3 {[%clk 00:02:25]} {[%emt 00:00:15]} Qe7 {[%clk 00:00:42]} {[%emt 00:00:13]}
28. Nd3 {[%clk 00:02:19]} {[%emt 00:00:09]} Rad8 {[%clk 00:00:42]} {[%emt
00:00:01]} 29. Ncxe5 {[%clk 00:01:59]} {[%emt 00:00:23]} Qd6 {[%clk 00:00:42]}
30. f4 {[%clk 00:01:59]} {[%emt 00:00:01]} f6 {[%clk 00:00:42]} {[%emt
00:00:01]} 31. gxf6 {[%emt 00:00:05]} Qxf6 {[%clk 00:00:42]} {[%emt 00:00:01]}
32. g5 {[%clk 00:01:56]} {[%emt 00:00:03]} Qg7 {[%clk 00:00:42]} 33. Qc5 {[%clk
00:01:53]} {[%emt 00:00:06]} 1-0

[Event "13 Open de Quenza"]
[Site "Quenza, France"]
[Date "2024.07.07"]
[Round "8.3"]
[White "Fressinet, Laurent"]
[Black "Podvin, Antoine"]
[Result "1/2-1/2"]
[TimeControl "5min+3s/move"]
[WhiteElo "2625"]
[BlackElo "2056"]

1. d4 {[%clk 00:05:03]} Nf6 {[%clk 00:05:03]} {[%emt 00:00:02]} 2. Nf3 {[%clk
00:05:03]} e6 {[%clk 00:05:03]} {[%emt 00:00:03]} 3. Bg5 {[%clk 00:05:03]}
{[%emt 00:00:01]} b6 {[%clk 00:05:03]} {[%emt 00:00:02]} 4. e4 {[%clk
00:05:03]} Be7 {[%clk 00:05:03]} {[%emt 00:00:04]} 5. Nbd2 {[%clk 00:04:52]}
{[%emt 00:00:14]} Bb7 {[%clk 00:05:02]} {[%emt 00:00:04]} 6. Bd3 {[%clk
00:04:47]} {[%emt 00:00:08]} d6 {[%clk 00:05:02]} {[%emt 00:00:03]} 7. O-O
{[%clk 00:04:42]} {[%emt 00:00:08]} c5 {[%clk 00:04:56]} {[%emt 00:00:09]} 8.
c3 {[%clk 00:04:35]} {[%emt 00:00:10]} h6 {[%clk 00:04:50]} {[%emt 00:00:08]} 9.
Bh4 {[%clk 00:04:31]} {[%emt 00:00:07]} Nbd7 {[%clk 00:04:50]} {[%emt
00:00:02]} 10. Qe2 {[%clk 00:04:29]} {[%emt 00:00:06]} e5 {[%clk 00:04:40]}
{[%emt 00:00:13]} 11. dxe5 {[%clk 00:04:25]} {[%emt 00:00:07]} Nxe5 {[%clk
00:04:34]} {[%emt 00:00:08]} 12. Nxe5 {[%clk 00:04:14]} {[%emt 00:00:14]} dxe5
{[%clk 00:04:34]} {[%emt 00:00:01]} 13. Bxf6 {[%clk 00:04:08]} {[%emt
00:00:09]} Bxf6 {[%clk 00:04:34]} {[%emt 00:00:02]} 14. Bb5+ {[%clk 00:04:08]}
{[%emt 00:00:02]} Kf8 {[%clk 00:04:32]} {[%emt 00:00:06]} 15. Rad1 {[%clk
00:04:05]} {[%emt 00:00:06]} Qc7 {[%clk 00:04:17]} {[%emt 00:00:18]} 16. Nf3
{[%clk 00:03:53]} {[%emt 00:00:15]} Bc6 {[%clk 00:04:05]} {[%emt 00:00:16]} 17.
Rd2 {[%clk 00:03:21]} {[%emt 00:00:35]} Ke7 {[%clk 00:03:57]} {[%emt 00:00:11]}
18. Rfd1 {[%clk 00:03:04]} {[%emt 00:00:20]} Rhd8 {[%clk 00:03:57]} {[%emt
00:00:01]} 19. a4 {[%clk 00:03:02]} {[%emt 00:00:05]} Rxd2 {[%clk 00:03:40]}
{[%emt 00:00:20]} 20. Rxd2 {[%clk 00:03:02]} {[%emt 00:00:02]} Rd8 {[%clk
00:03:39]} {[%emt 00:00:04]} 21. Rxd8 {[%clk 00:02:56]} {[%emt 00:00:10]} Kxd8
{[%clk 00:03:39]} {[%emt 00:00:01]} 22. Bxc6 {[%clk 00:02:56]} {[%emt
00:00:02]} Qxc6 {[%clk 00:03:39]} {[%emt 00:00:02]} 23. Qc4 {[%clk 00:02:54]}
{[%emt 00:00:04]} Ke7 {[%clk 00:03:21]} {[%emt 00:00:21]} 24. g3 {[%clk
00:02:54]} {[%emt 00:00:02]} h5 {[%clk 00:03:04]} {[%emt 00:00:20]} 25. h4
{[%clk 00:02:41]} {[%emt 00:00:17]} g6 {[%clk 00:02:59]} {[%emt 00:00:07]} 26.
Kf1 {[%clk 00:02:29]} {[%emt 00:00:15]} Qe6 {[%clk 00:02:46]} {[%emt 00:00:16]}
27. Nd2 {[%clk 00:02:15]} {[%emt 00:00:18]} Qh3+ {[%clk 00:02:09]} {[%emt
00:00:40]} 28. Ke1 {[%clk 00:01:56]} {[%emt 00:00:22]} g5 {[%clk 00:02:09]}
{[%emt 00:00:02]} 29. hxg5 {[%clk 00:01:47]} {[%emt 00:00:12]} Bxg5 {[%clk
00:02:04]} {[%emt 00:00:08]} 30. Nf3 {[%clk 00:01:47]} {[%emt 00:00:02]} Bf6
{[%clk 00:01:38]} {[%emt 00:00:29]} 31. Qd5 {[%clk 00:01:30]} {[%emt 00:00:19]}
Qe6 {[%clk 00:01:13]} {[%emt 00:00:27]} 32. Qxe6+ {[%clk 00:01:16]} {[%emt
00:00:18]} Kxe6 {[%clk 00:01:13]} {[%emt 00:00:02]} 33. Nd2 {[%clk 00:01:16]}
{[%emt 00:00:01]} a6 {[%clk 00:01:00]} {[%emt 00:00:17]} 34. Nc4 {[%clk
00:01:07]} {[%emt 00:00:11]} b5 {[%clk 00:00:56]} {[%emt 00:00:07]} 35. axb5
{[%clk 00:01:07]} {[%emt 00:00:02]} axb5 {[%clk 00:00:56]} {[%emt 00:00:01]} 36.
Na3 {[%clk 00:01:07]} b4 {[%clk 00:00:55]} {[%emt 00:00:05]} 37. Nc4 {[%clk
00:01:07]} {[%emt 00:00:02]} h4 {[%clk 00:00:44]} {[%emt 00:00:14]} 38. gxh4
{[%clk 00:01:07]} {[%emt 00:00:03]} Bxh4 {[%clk 00:00:44]} {[%emt 00:00:01]} 39.
Ke2 {[%clk 00:01:07]} f5 {[%clk 00:00:31]} {[%emt 00:00:16]} 40. f3 {[%clk
00:01:07]} fxe4 {[%clk 00:00:31]} {[%emt 00:00:03]} 41. fxe4 {[%clk 00:01:07]}
Bf6 {[%clk 00:00:29]} {[%emt 00:00:05]} 42. Kd3 {[%clk 00:01:07]} {[%emt
00:00:02]} bxc3 {[%clk 00:00:29]} {[%emt 00:00:03]} 43. bxc3 {[%clk 00:01:07]}
{[%emt 00:00:01]} Kd7 {[%clk 00:00:24]} {[%emt 00:00:08]} 44. Nd2 {[%clk
00:01:01]} {[%emt 00:00:08]} Kc6 {[%clk 00:00:23]} {[%emt 00:00:05]} 45. Kc4
{[%clk 00:01:01]} Bd8 {[%clk 00:00:22]} {[%emt 00:00:03]} 46. Nf3 {[%clk
00:00:59]} {[%emt 00:00:05]} Bc7 {[%clk 00:00:22]} {[%emt 00:00:01]} 47. Ne1
{[%clk 00:00:59]} {[%emt 00:00:01]} Bb8 {[%clk 00:00:17]} {[%emt 00:00:07]} 48.
Nf3 {[%clk 00:00:47]} {[%emt 00:00:15]} Bc7 {[%clk 00:00:17]} {[%emt 00:00:01]}
49. Nh4 {[%clk 00:00:47]} Bd6 {[%clk 00:00:13]} {[%emt 00:00:07]} 50. Nf5
{[%clk 00:00:47]} {[%emt 00:00:03]} Bf8 {[%clk 00:00:13]} {[%emt 00:00:02]} 51.
Kb3 {[%clk 00:00:44]} {[%emt 00:00:06]} Kb5 {[%clk 00:00:13]} {[%emt 00:00:03]}
52. Kc2 {[%clk 00:00:25]} {[%emt 00:00:23]} c4 {[%clk 00:00:13]} {[%emt
00:00:03]} 53. Ne3 {[%clk 00:00:19]} {[%emt 00:00:08]} Bc5 {[%clk 00:00:13]}
{[%emt 00:00:04]} 54. Nd5 {[%clk 00:00:19]} {[%emt 00:00:01]} Bd6 {[%clk
00:00:11]} {[%emt 00:00:04]} 55. Kd2 {[%clk 00:00:18]} {[%emt 00:00:04]} Ka4
{[%clk 00:00:11]} {[%emt 00:00:02]} 56. Kc2 {[%clk 00:00:18]} {[%emt 00:00:01]}
Kb5 {[%clk 00:00:11]} 57. Ne3 {[%clk 00:00:18]} {[%emt 00:00:04]} Bc5 {[%clk
00:00:11]} 58. Nf5 {[%clk 00:00:18]} {[%emt 00:00:03]} Bf8 {[%clk 00:00:11]}
{[%emt 00:00:02]} 59. Ne3 {[%clk 00:00:09]} {[%emt 00:00:12]} Bc5 {[%clk
00:00:11]} 60. Nd5 {[%clk 00:00:09]} {[%emt 00:00:02]} Bd6 {[%clk 00:00:11]}
{[%emt 00:00:01]} 61. Nf6 {[%clk 00:00:07]} {[%emt 00:00:05]} Kc6 {[%clk
00:00:06]} {[%emt 00:00:08]} 62. Kd2 {[%clk 00:00:07]} {[%emt 00:00:02]} Kb5
{[%clk 00:00:06]} 63. Nd5 {[%clk 00:00:07]} {[%emt 00:00:02]} Ka4 {[%clk
00:00:06]} {[%emt 00:00:02]} 64. Kc2 {[%clk 00:00:07]} {[%emt 00:00:03]} Kb5
{[%clk 00:00:06]} 65. Ne3 {[%clk 00:00:07]} Bc5 {[%clk 00:00:06]} {[%emt
00:00:02]} 66. Ng4 {[%clk 00:00:07]} {[%emt 00:00:02]} Bd6 {[%clk 00:00:06]} 67.
Nh6 {[%clk 00:00:07]} {[%emt 00:00:02]} Bc7 {[%clk 00:00:04]} {[%emt 00:00:05]}
68. Nf7 {[%clk 00:00:07]} {[%emt 00:00:02]} Bb8 {[%clk 00:00:04]} 69. Nd8
{[%clk 00:00:05]} {[%emt 00:00:05]} Bd6 {[%clk 00:00:04]} {[%emt 00:00:02]} 70.
Nf7 {[%clk 00:00:05]} {[%emt 00:00:01]} Bb8 {[%clk 00:00:04]} 71. Ng5 {[%clk
00:00:05]} {[%emt 00:00:02]} Bd6 {[%clk 00:00:04]} {[%emt 00:00:01]} 72. Ne6
{[%clk 00:00:05]} {[%emt 00:00:02]} Bb8 {[%clk 00:00:04]} {[%emt 00:00:02]} 73.
Kd2 {[%clk 00:00:05]} {[%emt 00:00:02]} Bd6 {[%clk 00:00:04]} {[%emt 00:00:02]}
74. Ng7 {[%clk 00:00:05]} Bc7 {[%clk 00:00:04]} {[%emt 00:00:02]} 75. Ne8
{[%clk 00:00:05]} {[%emt 00:00:01]} Bb8 {[%clk 00:00:04]} {[%emt 00:00:01]} 76.
Nf6 {[%clk 00:00:05]} Ka4 {[%clk 00:00:04]} {[%emt 00:00:02]} 77. Nd7 {[%clk
00:00:05]} {[%emt 00:00:03]} Bd6 {[%clk 00:00:04]} {[%emt 00:00:02]} 78. Kc2
{[%clk 00:00:05]} {[%emt 00:00:01]} Kb5 {[%clk 00:00:04]} 79. Nf6 {[%clk
00:00:05]} Bb8 {[%clk 00:00:04]} 80. Nd5 {[%clk 00:00:05]} {[%emt 00:00:01]}
Bd6 {[%clk 00:00:04]} {[%emt 00:00:01]} 81. Ne3 {[%clk 00:00:05]} {[%emt
00:00:01]} Bb8 {[%clk 00:00:04]} 82. Ng4 {[%clk 00:00:05]} {[%emt 00:00:01]}
Bd6 {[%clk 00:00:04]} 83. Nf6 {[%clk 00:00:05]} Bb8 {[%clk 00:00:04]} 84. Ne8
{[%clk 00:00:05]} {[%emt 00:00:04]} Kc5 {[%clk 00:00:04]} {[%emt 00:00:01]} 85.
Ng7 {[%clk 00:00:05]} {[%emt 00:00:02]} Kb5 {[%clk 00:00:04]} {[%emt 00:00:01]}
86. Nf5 {[%clk 00:00:05]} {[%emt 00:00:02]} Ka4 {[%clk 00:00:04]} {[%emt
00:00:01]} 87. Ne3 {[%clk 00:00:05]} {[%emt 00:00:02]} Kb5 {[%clk 00:00:04]}
{[%emt 00:00:01]} 88. Nd5 {[%clk 00:00:05]} Bd6 {[%clk 00:00:04]} 1/2-1/2

[Event "13 Open de Quenza"]
[Site "Quenza, France"]
[Date "2024.07.07"]
[Round "8.4"]
[White "Batsiashvili, Nino"]
[Black "Bellahcene, Bilel"]
[Result "0-1"]
[TimeControl "5min+3s/move"]
[WhiteElo "2451"]
[BlackElo "2535"]

1. d4 {[%clk 00:05:03]} {[%emt 00:00:01]} Nf6 {[%clk 00:05:03]} 2. c4 {[%clk
00:05:03]} {[%emt 00:00:02]} e6 {[%clk 00:05:03]} 3. Nc3 {[%clk 00:05:03]} Bb4
{[%clk 00:05:03]} {[%emt 00:00:02]} 4. Nf3 {[%clk 00:05:03]} b6 {[%clk
00:05:03]} {[%emt 00:00:02]} 5. e3 {[%clk 00:05:03]} {[%emt 00:00:01]} Bb7
{[%clk 00:05:03]} {[%emt 00:00:01]} 6. Bd3 {[%clk 00:05:03]} {[%emt 00:00:01]}
Ne4 {[%clk 00:05:01]} {[%emt 00:00:05]} 7. O-O {[%clk 00:05:03]} {[%emt
00:00:03]} Bxc3 {[%clk 00:05:00]} {[%emt 00:00:04]} 8. bxc3 {[%clk 00:05:03]}
O-O {[%clk 00:04:59]} {[%emt 00:00:05]} 9. Ne1 {[%clk 00:04:58]} {[%emt
00:00:08]} f5 {[%clk 00:04:59]} {[%emt 00:00:02]} 10. f3 {[%clk 00:04:58]}
{[%emt 00:00:02]} Nf6 {[%clk 00:04:59]} 11. c5 {[%clk 00:04:14]} {[%emt
00:00:47]} d6 {[%clk 00:03:46]} {[%emt 00:01:16]} 12. cxd6 {[%clk 00:04:11]}
{[%emt 00:00:06]} cxd6 {[%clk 00:03:44]} {[%emt 00:00:04]} 13. Ba3 {[%clk
00:03:56]} {[%emt 00:00:18]} Re8 {[%clk 00:03:35]} {[%emt 00:00:12]} 14. Qe2
{[%clk 00:03:34]} {[%emt 00:00:25]} Qc7 {[%clk 00:03:30]} {[%emt 00:00:08]} 15.
Rc1 {[%clk 00:03:26]} {[%emt 00:00:11]} Nbd7 {[%clk 00:03:30]} {[%emt
00:00:03]} 16. e4 {[%clk 00:03:26]} {[%emt 00:00:02]} Kh8 {[%clk 00:03:21]}
{[%emt 00:00:13]} 17. exf5 {[%clk 00:03:15]} {[%emt 00:00:14]} exf5 {[%clk
00:03:21]} 18. Qd2 {[%clk 00:03:15]} Nd5 {[%clk 00:03:16]} {[%emt 00:00:08]} 19.
Nc2 {[%clk 00:02:27]} {[%emt 00:00:51]} Qxc3 {[%clk 00:03:16]} {[%emt
00:00:02]} 20. Qxc3 {[%clk 00:02:18]} {[%emt 00:00:12]} Nxc3 {[%clk 00:03:16]}
21. Rce1 {[%clk 00:01:53]} {[%emt 00:00:27]} Nf6 {[%clk 00:02:46]} {[%emt
00:00:34]} 22. Bxd6 {[%clk 00:01:53]} {[%emt 00:00:02]} Nxa2 {[%clk 00:02:46]}
{[%emt 00:00:03]} 23. Bxf5 {[%clk 00:01:51]} {[%emt 00:00:05]} Nc3 {[%clk
00:02:46]} {[%emt 00:00:02]} 24. Be5 {[%clk 00:01:51]} {[%emt 00:00:02]} a5
{[%clk 00:02:45]} {[%emt 00:00:04]} 25. g4 {[%clk 00:01:23]} {[%emt 00:00:31]}
Bc8 {[%clk 00:01:50]} {[%emt 00:00:57]} 26. Bxf6 {[%clk 00:01:12]} {[%emt
00:00:14]} Bxf5 {[%clk 00:01:50]} 27. Bxg7+ {[%clk 00:01:12]} {[%emt 00:00:04]}
Kxg7 {[%clk 00:01:50]} 28. gxf5 {[%clk 00:01:12]} Kf6 {[%clk 00:01:50]} 29. Ne3
{[%clk 00:01:07]} {[%emt 00:00:07]} b5 {[%clk 00:01:50]} 30. Kf2 {[%emt
00:00:24]} a4 {[%emt 00:00:01]} 31. Rg1 {[%clk 00:00:24]} {[%emt 00:00:25]} a3
{[%clk 00:01:07]} {[%emt 00:00:46]} 32. Ng4+ {[%clk 00:00:24]} Kxf5 {[%clk
00:01:07]} 33. Nh6+ {[%clk 00:00:24]} {[%emt 00:00:01]} Kf6 {[%clk 00:01:04]}
{[%emt 00:00:05]} 34. Ng4+ {[%clk 00:00:24]} {[%emt 00:00:04]} Kg6 {[%clk
00:00:58]} {[%emt 00:00:05]} 35. Ne5+ {[%clk 00:00:24]} {[%emt 00:00:06]} Kf5
{[%clk 00:00:52]} {[%emt 00:00:09]} 36. h4 {[%clk 00:00:05]} {[%emt 00:00:22]}
Rg8 {[%clk 00:00:51]} {[%emt 00:00:04]} 37. Rg4 {[%clk 00:00:04]} {[%emt
00:00:05]} a2 {[%clk 00:00:51]} {[%emt 00:00:03]} 38. Reg1 {[%clk 00:00:04]}
{[%emt 00:00:02]} Rxg4 {[%clk 00:00:51]} {[%emt 00:00:04]} 39. fxg4+ {[%clk
00:00:04]} Ke4 {[%clk 00:00:51]} {[%emt 00:00:01]} 40. Ra1 {[%clk 00:00:04]}
Kxd4 {[%clk 00:00:51]} {[%emt 00:00:03]} 41. Nf3+ {[%clk 00:00:04]} {[%emt
00:00:02]} Kd3 {[%clk 00:00:51]} {[%emt 00:00:01]} 42. g5 {[%clk 00:00:04]}
{[%emt 00:00:01]} Kc2 {[%clk 00:00:51]} {[%emt 00:00:02]} 43. h5 {[%clk
00:00:04]} {[%emt 00:00:02]} Kb2 {[%clk 00:00:51]} {[%emt 00:00:02]} 0-1